[Event "*** Titled Tuesday Blitz"]
[Site "Chess.com"]
[Date "2021.02.09"]
[Round "11"]
[White "csati17"]
[Black "Adham_Fawzy"]
[Result "0-1"]
[WhiteElo "2597"]
[BlackElo "2785"]
[TimeControl "180+1"]
[EndTime "12:10:02 PST"]
[Termination "Adham_Fawzy won by resignation"]

1. c4 {[%clk 0:03:00.9]} 1... c5 {[%clk 0:02:08.4]} 2. g3 {[%clk 0:03:00.6]}
2... Nc6 {[%clk 0:02:08]} 3. Bg2 {[%clk 0:03:00.9]} 3... e5 {[%clk 0:02:08.9]}
4. Nc3 {[%clk 0:03:01]} 4... g6 {[%clk 0:02:07]} 5. e3 {[%clk 0:03:01.3]} 5...
Bg7 {[%clk 0:02:07.4]} 6. Nge2 {[%clk 0:03:02.2]} 6... Nge7 {[%clk 0:02:07.9]}
7. O-O {[%clk 0:03:03.1]} 7... O-O {[%clk 0:02:08.8]} 8. a3 {[%clk 0:03:02.8]}
8... d6 {[%clk 0:02:09.7]} 9. d3 {[%clk 0:03:02.3]} 9... a6 {[%clk 0:02:09.5]}
10. Rb1 {[%clk 0:03:02.3]} 10... Rb8 {[%clk 0:02:10.1]} 11. b4 {[%clk
0:03:02.7]} 11... cxb4 {[%clk 0:02:11]} 12. axb4 {[%clk 0:03:03.6]} 12... b5
{[%clk 0:02:11.9]} 13. cxb5 {[%clk 0:03:04.5]} 13... axb5 {[%clk 0:02:12.7]} 14.
d4 {[%clk 0:02:49.2]} 14... Bf5 {[%clk 0:02:12.3]} 15. e4 {[%clk 0:02:17.1]}
15... exd4 {[%clk 0:02:10.3]} 16. exf5 {[%clk 0:02:17.4]} 16... dxc3 {[%clk
0:02:09.5]} 17. fxg6 {[%clk 0:02:14.2]} 17... hxg6 {[%clk 0:02:10.4]} 18. Bg5
{[%clk 0:02:08.4]} 18... Qc7 {[%clk 0:02:02.9]} 19. Qd3 {[%clk 0:01:53.8]} 19...
Nf5 {[%clk 0:01:57.2]} 20. Nxc3 {[%clk 0:01:40.4]} 20... Nxb4 {[%clk 0:01:56.5]}
21. Rxb4 {[%clk 0:01:35.5]} 21... Qxc3 {[%clk 0:01:53.5]} 22. Qb1 {[%clk
0:01:27]} 22... Nd4 {[%clk 0:01:32.6]} 23. Be7 {[%clk 0:01:18.1]} 23... Rfe8
{[%clk 0:01:18.4]} 24. Bxd6 {[%clk 0:01:17.4]} 24... Rbd8 {[%clk 0:01:18.2]} 25.
Bf4 {[%clk 0:01:06.7]} 25... Bf8 {[%clk 0:01:16.1]} 26. Rb2 {[%clk 0:01:02.6]}
26... Ba3 {[%clk 0:00:42.2]} 27. Rxb5 {[%clk 0:00:57.3]} 27... Nxb5 {[%clk
0:00:41.1]} 28. Qxb5 {[%clk 0:00:57.7]} 28... Bc5 {[%clk 0:00:36]} 29. Qc6
{[%clk 0:00:51]} 29... Re1 {[%clk 0:00:33.4]} 30. Be3 {[%clk 0:00:46.9]} 30...
Rxf1+ {[%clk 0:00:20.2]} 31. Bxf1 {[%clk 0:00:47.8]} 31... Bd4 {[%clk
0:00:19.5]} 32. Qxc3 {[%clk 0:00:32.8]} 32... Bxc3 {[%clk 0:00:20.4]} 33. Kg2
{[%clk 0:00:31.6]} 33... Bd4 {[%clk 0:00:20.5]} 34. Bf4 {[%clk 0:00:30.5]} 34...
Kg7 {[%clk 0:00:19.7]} 35. Kf3 {[%clk 0:00:17.1]} 35... Rc8 {[%clk 0:00:19.6]}
36. Be3 {[%clk 0:00:16.7]} 36... Rc3 {[%clk 0:00:19.4]} 37. h4 {[%clk
0:00:12.7]} 37... f5 {[%clk 0:00:18.3]} 38. Bb5 {[%clk 0:00:11.2]} 38... Kf6
{[%clk 0:00:17.6]} 39. Ba4 {[%clk 0:00:06.8]} 39... Ra3 {[%clk 0:00:12.7]} 40.
Bd7 {[%clk 0:00:06.6]} 40... Bxe3 {[%clk 0:00:09.3]} 41. fxe3 {[%clk 0:00:07.5]}
41... Ra1 {[%clk 0:00:08.8]} 42. g4 {[%clk 0:00:04.7]} 42... fxg4+ {[%clk
0:00:06.6]} 43. Bxg4 {[%clk 0:00:03.4]} 43... Rf1+ {[%clk 0:00:06.5]} 44. Kg3
{[%clk 0:00:03.7]} 44... Rg1+ {[%clk 0:00:05.9]} 45. Kf4 {[%clk 0:00:04]} 45...
Rb1 {[%clk 0:00:05.3]} 46. Bf3 {[%clk 0:00:03.7]} 46... Rb4+ {[%clk 0:00:06.2]}
47. e4 {[%clk 0:00:04.1]} 47... Rc4 {[%clk 0:00:05.6]} 48. h5 {[%clk 0:00:02.8]}
48... g5+ {[%clk 0:00:05.3]} 49. Kg4 {[%clk 0:00:03.2]} 49... Rc3 {[%clk
0:00:05.6]} 50. Be2 {[%clk 0:00:01.7]} 50... Re3 {[%clk 0:00:05.2]} 51. Bf3
{[%clk 0:00:02.2]} 51... Rc3 {[%clk 0:00:04.7]} 52. Be2 {[%clk 0:00:02.5]} 52...
Rc2 {[%clk 0:00:04.7]} 53. Bf3 {[%clk 0:00:02.9]} 53... Rc4 {[%clk 0:00:04.5]}
54. Kg3 {[%clk 0:00:02.3]} 54... Rd4 {[%clk 0:00:02.9]} 55. Kg4 {[%clk
0:00:02.6]} 55... Rb4 {[%clk 0:00:03]} 56. h6 {[%clk 0:00:03]} 56... Kg6 {[%clk
0:00:02.7]} 57. h7 {[%clk 0:00:02.7]} 57... Rb8 {[%clk 0:00:02.7]} 58. e5 {[%clk
0:00:03.1]} 58... Kxh7 {[%clk 0:00:02.8]} 59. Kxg5 {[%clk 0:00:03.1]} 59... Kg7
{[%clk 0:00:03.7]} 60. Kf5 {[%clk 0:00:03.3]} 60... Kf7 {[%clk 0:00:04.5]} 61.
Bd5+ {[%clk 0:00:03]} 61... Ke7 {[%clk 0:00:05.4]} 62. Ke4 {[%clk 0:00:03.6]}
62... Rb4+ {[%clk 0:00:06.3]} 63. Kf5 {[%clk 0:00:04.1]} 63... Rb5 {[%clk
0:00:06.6]} 64. Be4 {[%clk 0:00:04.6]} 64... Ra5 {[%clk 0:00:07.5]} 65. Bd3
{[%clk 0:00:04.9]} 65... Ra3 {[%clk 0:00:07.2]} 66. Be4 {[%clk 0:00:05.3]} 66...
Rc3 {[%clk 0:00:08.1]} 67. Kf4 {[%clk 0:00:05.6]} 67... Ke6 {[%clk 0:00:08.9]}
68. Bf5+ {[%clk 0:00:06]} 68... Kd5 {[%clk 0:00:09.6]} 69. Be4+ {[%clk
0:00:06.5]} 69... Kd4 {[%clk 0:00:10]} 70. Kf5 {[%clk 0:00:07]} 70... Re3 {[%clk
0:00:10.1]} 71. Bc6 {[%clk 0:00:05.9]} 71... Rxe5+ {[%clk 0:00:11]} 72. Kf4
{[%clk 0:00:05.9]} 72... Rc5 {[%clk 0:00:11.9]} 73. Bd7 {[%clk 0:00:06.1]} 73...
Rc7 {[%clk 0:00:12.3]} 74. Be6 {[%clk 0:00:06.1]} 74... Re7 {[%clk 0:00:12.3]}
75. Kf5 {[%clk 0:00:06.4]} 75... Kc5 {[%clk 0:00:12.6]} 76. Bb3 {[%clk
0:00:04.9]} 76... Kd6 {[%clk 0:00:12.3]} 77. Kf4 {[%clk 0:00:05.1]} 77... Re5
{[%clk 0:00:12.3]} 78. Bc2 {[%clk 0:00:05.2]} 78... Rc5 {[%clk 0:00:12]} 79. Be4
{[%clk 0:00:05.3]} 79... Ke6 {[%clk 0:00:12.1]} 80. Bd3 {[%clk 0:00:05.3]} 80...
Rc3 {[%clk 0:00:12.1]} 81. Ke4 {[%clk 0:00:05.3]} 81... Kd6 {[%clk 0:00:12.2]}
82. Kd4 {[%clk 0:00:05.6]} 82... Ra3 {[%clk 0:00:11.9]} 83. Ke4 {[%clk
0:00:04.9]} 83... Ra4+ {[%clk 0:00:11.8]} 84. Kf5 {[%clk 0:00:05]} 84... Kd5
{[%clk 0:00:12.1]} 85. Be2 {[%clk 0:00:05.3]} 85... Ra3 {[%clk 0:00:12.1]} 86.
Bg4 {[%clk 0:00:03.8]} 86... Re3 {[%clk 0:00:11.2]} 87. Kf4 {[%clk 0:00:03.5]}
87... Kd4 {[%clk 0:00:11.5]} 88. Bf5 {[%clk 0:00:03.6]} 88... Re1 {[%clk
0:00:11.2]} 89. Kg5 {[%clk 0:00:03.6]} 89... Ke5 {[%clk 0:00:10.3]} 90. Kg6
{[%clk 0:00:02.2]} 90... Rg1+ {[%clk 0:00:10]} 0-1

[Event "*** Titled Tuesday Blitz"]
[Site "Chess.com"]
[Date "2021.02.09"]
[Round "11"]
[White "KingCyber19"]
[Black "BvsN"]
[Result "1/2-1/2"]
[WhiteElo "2546"]
[BlackElo "2341"]
[TimeControl "180+1"]
[EndTime "12:10:11 PST"]
[Termination "Game drawn by repetition"]

1. d4 {[%clk 0:03:00.9]} 1... d5 {[%clk 0:02:59.6]} 2. c4 {[%clk 0:03:01.5]}
2... c6 {[%clk 0:02:59.9]} 3. Nc3 {[%clk 0:02:59.3]} 3... Nf6 {[%clk 0:02:59.9]}
4. Nf3 {[%clk 0:02:59.6]} 4... e6 {[%clk 0:03:00.2]} 5. g3 {[%clk 0:03:00.1]}
5... dxc4 {[%clk 0:02:59.1]} 6. Bg2 {[%clk 0:02:59.4]} 6... Nbd7 {[%clk
0:02:59.6]} 7. O-O {[%clk 0:02:59.4]} 7... Bb4 {[%clk 0:02:59.8]} 8. a4 {[%clk
0:02:55.5]} 8... Qe7 {[%clk 0:02:56.5]} 9. Nd2 {[%clk 0:02:50.3]} 9... e5 {[%clk
0:02:52.4]} 10. Nxc4 {[%clk 0:02:48.4]} 10... exd4 {[%clk 0:02:52.7]} 11. Qxd4
{[%clk 0:02:49.3]} 11... Bc5 {[%clk 0:02:51.8]} 12. Qd1 {[%clk 0:02:47.5]} 12...
O-O {[%clk 0:02:51.8]} 13. Bf4 {[%clk 0:02:47]} 13... Nb6 {[%clk 0:02:36.4]} 14.
Nxb6 {[%clk 0:02:31.6]} 14... axb6 {[%clk 0:02:36.4]} 15. Qc2 {[%clk 0:02:30.4]}
15... Be6 {[%clk 0:02:32.4]} 16. Rad1 {[%clk 0:02:26.6]} 16... Rfd8 {[%clk
0:02:31.8]} 17. Rxd8+ {[%clk 0:02:19.7]} 17... Rxd8 {[%clk 0:02:31.8]} 18. Rd1
{[%clk 0:02:20.2]} 18... Rxd1+ {[%clk 0:02:30.2]} 19. Nxd1 {[%clk 0:02:10.5]}
19... Nd5 {[%clk 0:02:27.6]} 20. Bd2 {[%clk 0:01:59.8]} 20... Qd7 {[%clk
0:02:22]} 21. a5 {[%clk 0:01:39.2]} 21... h6 {[%clk 0:01:57.7]} 22. e4 {[%clk
0:01:35.8]} 22... Nf6 {[%clk 0:01:49.7]} 23. axb6 {[%clk 0:01:32.9]} 23... Bxb6
{[%clk 0:01:49.6]} 24. Be3 {[%clk 0:01:33.1]} 24... Bxe3 {[%clk 0:01:44.1]} 25.
Nxe3 {[%clk 0:01:34]} 25... Qd4 {[%clk 0:01:34.3]} 26. h3 {[%clk 0:01:25.3]}
26... c5 {[%clk 0:01:20]} 27. Nf5 {[%clk 0:01:10.4]} 27... Bxf5 {[%clk
0:01:13.8]} 28. exf5 {[%clk 0:01:11.3]} 28... b5 {[%clk 0:01:09.1]} 29. Bf1
{[%clk 0:01:11.7]} 29... c4 {[%clk 0:00:56.2]} 30. b3 {[%clk 0:01:09.4]} 30...
cxb3 {[%clk 0:00:51.8]} 31. Qxb3 {[%clk 0:01:08.7]} 31... b4 {[%clk 0:00:49.7]}
32. Bc4 {[%clk 0:01:08.9]} 32... Qa1+ {[%clk 0:00:47]} 33. Kg2 {[%clk
0:01:02.6]} 33... Qa8+ {[%clk 0:00:42.9]} 34. Kh2 {[%clk 0:00:51]} 34... Qb7
{[%clk 0:00:39.5]} 35. Qa4 {[%clk 0:00:41.4]} 35... Nd7 {[%clk 0:00:27.2]} 36.
Qd1 {[%clk 0:00:32.9]} 36... Ne5 {[%clk 0:00:21]} 37. Qd8+ {[%clk 0:00:27.4]}
37... Kh7 {[%clk 0:00:20.6]} 38. Bd5 {[%clk 0:00:26.6]} 38... Qd7 {[%clk
0:00:15]} 39. Qxd7 {[%clk 0:00:19]} 39... Nxd7 {[%clk 0:00:15.2]} 40. Bxf7
{[%clk 0:00:19]} 40... Nc5 {[%clk 0:00:15.2]} 41. Kg2 {[%clk 0:00:17.8]} 41...
b3 {[%clk 0:00:15.7]} 42. Kf1 {[%clk 0:00:16.8]} 42... Ne4 {[%clk 0:00:10.5]}
43. Bg6+ {[%clk 0:00:08.6]} 43... Kg8 {[%clk 0:00:08]} 44. f6 {[%clk 0:00:09]}
44... Nxf6 {[%clk 0:00:04.9]} 45. Ke1 {[%clk 0:00:08.6]} 45... Nd5 {[%clk
0:00:03.8]} 46. Kd2 {[%clk 0:00:08.8]} 46... Nb4 {[%clk 0:00:03.1]} 47. Kc3
{[%clk 0:00:08.5]} 47... Nd5+ {[%clk 0:00:03.4]} 48. Kxb3 {[%clk 0:00:08.8]}
48... Kf8 {[%clk 0:00:04]} 49. Kc4 {[%clk 0:00:09.3]} 49... Ne7 {[%clk
0:00:04.4]} 50. Bc2 {[%clk 0:00:09.3]} 50... Kf7 {[%clk 0:00:04.7]} 51. Kd4
{[%clk 0:00:09.6]} 51... Kf6 {[%clk 0:00:05.1]} 52. Ke4 {[%clk 0:00:09.2]} 52...
Nc8 {[%clk 0:00:04.2]} 53. Bb3 {[%clk 0:00:06.7]} 53... Ne7 {[%clk 0:00:04.2]}
54. Bd5 {[%clk 0:00:05.4]} 54... Nc8 {[%clk 0:00:02.1]} 55. f4 {[%clk
0:00:05.7]} 55... Nd6+ {[%clk 0:00:02.3]} 56. Kd4 {[%clk 0:00:06.2]} 56... Nf5+
{[%clk 0:00:02.4]} 57. Ke4 {[%clk 0:00:06.2]} 57... Nxg3+ {[%clk 0:00:02.8]} 58.
Kf3 {[%clk 0:00:07.1]} 58... Nf5 {[%clk 0:00:02.8]} 59. Be4 {[%clk 0:00:07.7]}
59... Ne7 {[%clk 0:00:03.1]} 60. Bd3 {[%clk 0:00:08.4]} 60... Nf5 {[%clk
0:00:03]} 61. Kg4 {[%clk 0:00:08.9]} 61... Ne3+ {[%clk 0:00:02.7]} 62. Kf3
{[%clk 0:00:09]} 62... Nd5 {[%clk 0:00:02.8]} 63. Be4 {[%clk 0:00:09.6]} 63...
Ne7 {[%clk 0:00:03]} 64. Kg4 {[%clk 0:00:10.3]} 64... g6 {[%clk 0:00:03.2]} 65.
h4 {[%clk 0:00:10.1]} 65... h5+ {[%clk 0:00:03.4]} 66. Kf3 {[%clk 0:00:10]}
66... Nf5 {[%clk 0:00:03.8]} 67. Bd3 {[%clk 0:00:03.5]} 67... Nxh4+ {[%clk
0:00:04]} 68. Kg3 {[%clk 0:00:04.1]} 68... Nf5+ {[%clk 0:00:04.1]} 69. Kf3
{[%clk 0:00:04.7]} 69... Ng7 {[%clk 0:00:04.1]} 70. Kg3 {[%clk 0:00:04.7]} 70...
Ne6 {[%clk 0:00:04.3]} 71. Kf3 {[%clk 0:00:02.6]} 71... Nd4+ {[%clk 0:00:04.7]}
72. Ke4 {[%clk 0:00:02.6]} 72... Nf5 {[%clk 0:00:04.7]} 73. Kf3 {[%clk
0:00:02.7]} 73... Kg7 {[%clk 0:00:03.9]} 74. Bc4 {[%clk 0:00:02.3]} 74... Kh6
{[%clk 0:00:04]} 75. Bd3 {[%clk 0:00:02.8]} 75... h4 {[%clk 0:00:04]} 76. Kg4
{[%clk 0:00:03.3]} 76... Kg7 {[%clk 0:00:03.7]} 77. Bxf5 {[%clk 0:00:03]} 77...
gxf5+ {[%clk 0:00:04.2]} 78. Kxh4 {[%clk 0:00:03.4]} 78... Kh6 {[%clk
0:00:04.7]} 79. Kg3 {[%clk 0:00:03.4]} 79... Kg6 {[%clk 0:00:04.7]} 80. Kh3
{[%clk 0:00:02.7]} 80... Kh6 {[%clk 0:00:05.1]} 81. Kh4 {[%clk 0:00:03.1]} 81...
Kg6 {[%clk 0:00:05.6]} 82. Kg3 {[%clk 0:00:03.7]} 82... Kh6 {[%clk 0:00:05.9]}
83. Kh4 {[%clk 0:00:04]} 83... Kg6 {[%clk 0:00:06.5]} 84. Kg3 {[%clk 0:00:04.5]}
84... Kh6 {[%clk 0:00:07]} 85. Kf3 {[%clk 0:00:05.2]} 85... Kg6 {[%clk
0:00:06.7]} 86. Ke3 {[%clk 0:00:05.4]} 86... Kh5 {[%clk 0:00:06.2]} 87. Kd4
{[%clk 0:00:05.4]} 87... Kg6 {[%clk 0:00:06]} 88. Ke5 {[%clk 0:00:05.5]} 88...
Kg7 {[%clk 0:00:06.5]} 89. Kxf5 {[%clk 0:00:06.4]} 89... Kf7 {[%clk 0:00:07.1]}
90. Kg5 {[%clk 0:00:06.8]} 90... Kg7 {[%clk 0:00:07.6]} 91. Kf5 {[%clk
0:00:07.4]} 91... Kf7 {[%clk 0:00:08.1]} 92. Ke5 {[%clk 0:00:08]} 92... Ke7
{[%clk 0:00:08.6]} 93. f5 {[%clk 0:00:08.3]} 93... Kf7 {[%clk 0:00:09]} 94. Ke4
{[%clk 0:00:08.7]} 94... Kf6 {[%clk 0:00:09.3]} 95. Kf4 {[%clk 0:00:09.6]} 95...
Kf7 {[%clk 0:00:09.7]} 96. Kg5 {[%clk 0:00:10.5]} 96... Kg7 {[%clk 0:00:10.2]}
97. f6+ {[%clk 0:00:10.7]} 97... Kf7 {[%clk 0:00:10.7]} 98. Kf5 {[%clk
0:00:11.6]} 98... Kf8 {[%clk 0:00:11.1]} 99. Kg6 {[%clk 0:00:11.3]} 99... Kg8
{[%clk 0:00:11.4]} 100. Kh5 {[%clk 0:00:11.7]} 100... Kf7 {[%clk 0:00:11.7]}
101. Kg5 {[%clk 0:00:12.3]} 101... Kf8 {[%clk 0:00:12.1]} 102. Kg6 {[%clk
0:00:12.7]} 102... Kg8 {[%clk 0:00:12.4]} 103. Kf5 {[%clk 0:00:11.2]} 103... Kf7
{[%clk 0:00:12.7]} 104. Ke5 {[%clk 0:00:11.7]} 104... Kf8 {[%clk 0:00:12.9]}
105. Ke6 {[%clk 0:00:11.6]} 105... Ke8 {[%clk 0:00:13.4]} 106. Kd5 {[%clk
0:00:12.1]} 106... Kf7 {[%clk 0:00:13.5]} 107. Ke5 {[%clk 0:00:12.5]} 107... Kf8
{[%clk 0:00:13.9]} 108. Kf5 {[%clk 0:00:12.4]} 108... Kf7 {[%clk 0:00:14.2]}
109. Kg5 {[%clk 0:00:13.3]} 109... Kf8 {[%clk 0:00:14.3]} 110. Kh6 {[%clk
0:00:13.6]} 110... Kf7 {[%clk 0:00:14.6]} 111. Kg5 {[%clk 0:00:14.2]} 1/2-1/2